Cogmind - Beta 13 @@@ ROGUE MODE // 2024.04.28 @ 05:51:39 // Winter2019/RPGLIKE Player: TheEpicPerson Result: Destroyed by Y-54 Guardian with Gatling Laser Performance ------------- Evolutions (3) 1500 Regions Visited (9) 1800 Robots Destroyed (149) 745 Value Destroyed (3361) 3361 Prototype IDs (26) 520 Alien Tech Used (0) 0 Bonus (123) 123 TOTAL SCORE: 8049 Bonus ------- High Alert Combat Kills 24 Follower Combat Kills 99 Cogmind --------- Core Integrity 0/850 Matter 290/300 Energy 160/160 System Corruption 0% Temperature Cool (6) Movement Flying (34) Location -7/Lower Caves Parts ------- > --- POWER (1) -------- Light Nuclear Core > --- PROPULSION (3) --- VTOL Module Xenon Bombardment Thruster > --- UTILITY (5) ------ Structural Scanner Improved Signal Interpreter Advanced Targeting Computer Core Analyzer Utility Shielding > --- WEAPON (1) ------- Great Axe > --- INVENTORY (4) ---- Melee Analysis Suite Melee Analysis Suite Microactuators Heavy Rocket Launcher Peak State ------------ > --- POWER ------------ Micro Nuclear Core > --- PROPULSION ------- Carbon-fiber Leg Potential Leg Potential Leg > --- UTILITY ---------- Signal Interpreter Targeting Computer Advanced Targeting Computer Utility Shielding > --- WEAPON ----------- Great Axe > --- INVENTORY -------- VTOL Module VTOL Module Propulsion Shielding Mini Grenade Launcher [Rating: 37] Favorites ----------- Power Heavy Ion Engine Engine Heavy Ion Engine Power Core Micro Nuclear Core Propulsion Wheel Leg Potential Leg Wheel Wheel Hover Unit Hover Unit Flight Unit VTOL Module Utility Signal Interpreter Device Structural Scanner Processor Signal Interpreter Protection Utility Shielding Weapon Maul Energy Gun Particle Gun Energy Cannon Heavy Particle Cannon Ballistic Gun Assault Rifle Launcher Grenade Launcher Impact Weapon Maul Slashing Weapon Great Axe Build | -11 -10 -10 -9 -9 -9 -8 -8 -7 -7 ------- Run | Yrd Mat Min Mat Min Exi Min Mat Fac Low Slots Evolved 6 | 2 . . 1 1 . . 1 1 . Power . | . . . . . . . . . . Propulsion 2 | 1 . . . . . . 1 . . Utility 4 | 1 . . 1 1 . . . 1 . Weapon . | . . . . . . . . . . Parts Attached 81 | 2 21 6 13 . 2 1 18 16 2 Power 9 | . 4 . 1 . . . 3 . 1 Engine 5 | . 4 . 1 . . . . . . Core 4 | . . . . . . . 3 . 1 Reactor . | . . . . . . . . . . Propulsion 23 | 1 7 . 5 . 2 . 6 1 1 Treads . | . . . . . . . . . . Leg 8 | 1 1 . 1 . 2 . 3 . . Wheel 7 | . 2 . 4 . . . 1 . . Hover 2 | . 2 . . . . . . . . Flight 6 | . 2 . . . . . 2 1 1 Utility 32 | . 8 2 5 . . 1 1 15 . Device 11 | . 2 . 2 . . 1 . 6 . Storage . | . . . . . . . . . . Processor 8 | . 3 2 . . . . 1 2 . Hackware . | . . . . . . . . . . Protection 13 | . 3 . 3 . . . . 7 . Artifact . | . . . . . . . . . . Weapon 17 | 1 2 4 2 . . . 8 . . Energy Gun 5 | . 2 2 . . . . 1 . . Energy Cannon 2 | . . . 1 . . . 1 . . Ballistic Gun 1 | 1 . . . . . . . . . Ballistic Cannon . | . . . . . . . . . . Launcher 3 | . . 2 . . . . 1 . . Special Weapon . | . . . . . . . . . . Impact Weapon 2 | . . . 1 . . . 1 . . Slashing Weapon 4 | . . . . . . . 4 . . Piercing Weapon . | . . . . . . . . . . Special Melee Weapon . | . . . . . . . . . . Unidentified Prototypes 1 | . . . 1 . . . . . . Parts Lost 3 | . 1 . 1 . . . . . 1 Power 1 | . 1 . . . . . . . . Propulsion 1 | . . . . . . . . . 1 Utility 1 | . . . 1 . . . . . . Weapon . | . . . . . . . . . . Highest Loss Streak 1 | . 1 . 1 . . . . . 1 To Critical Strikes . | . . . . . . . . . . Average Slot Usage (%) 93 | . 89 99 97 87 87 87 94 90 96 Engine 9 | . 15 16 14 12 12 12 1 . . Core 3 | . . . . . . . 9 10 10 Leg 7 | . 2 . . . 9 25 30 . . Wheel 14 | . 19 33 27 25 15 . . . . Flight 5 | . 8 . . . . . . 20 26 Device 2 | . 2 . 1 . . . . 10 10 Processor 25 | . 15 32 28 25 25 25 30 20 30 Protection 10 | . 6 . 10 12 12 12 11 18 10 Energy Gun 3 | . 11 15 1 . . . . . . Energy Cannon 1 | . . . 7 . . . . . . Impact Weapon 3 | . . . 5 12 12 12 1 . . Slashing Weapon 3 | . . . . . . . 9 10 10 Naked Turns . | . . . . . . . . . . Heaviest Build 19 | 7 11 8 19 12 12 12 13 13 12 Greatest Support 85 | 20 20 20 29 29 65 65 85 24 24 Greatest Overweight (x) 1 | . 1 . . . . . . . . Average Overweight (x) . | . . . . . . . . . . Largest Inventory Capacity 4 | . 2 2 4 4 4 4 4 4 4 Average Capacity 3 | . . 2 3 4 4 4 4 4 4 Most Carried 4 | . 2 2 4 4 4 4 4 4 4 Average Carried 3 | . . 1 3 4 4 4 3 3 4 Final Capacity 4 | . 2 2 4 4 4 4 4 4 4 Final Carried 4 | . 2 2 4 4 4 4 3 4 4 Class Distribution -------------------- 36% | Mutant 33% | Hacker-Assassin 17% | Hacker-Scout 10% | Hacker-Mutant Dominant Class ---------------- Mutant | -10/Materials Mutant | -10/Mines Mutant | -9/Materials Hacker-Assassin | -9/Mines Hacker-Assassin | -9/Exiles Hacker-Assassin | -8/Mines Hacker-Assassin | -8/Materials Hacker-Scout | -7/Factory Hacker-Scout | -7/Lower Caves Resources | -11 -10 -10 -9 -9 -9 -8 -8 -7 -7 ----------- Run | Yrd Mat Min Mat Min Exi Min Mat Fac Low Matter Collected 1263 | 220 368 68 227 . . 30 180 160 10 Remotely 10 | . . . 10 . . . . . . Salvage Created 5170 | . 588 34 1273 . . 154 1169 1766 186 Parts 292 | . 36 11 73 . . 10 59 89 14 Haulers Intercepted 11 | . 2 . 4 . . . 2 3 . Recyclers Shooed 7 | . 1 1 . . . . 3 2 . Parts Field Recycled . | . . . . . . . . . . Retrieved Matter . | . . . . . . . . . . Parts Self-Destructed 11 | . . . . . . . . . 11 Prevented . | . . . . . . . . . . Kills | -11 -10 -10 -9 -9 -9 -8 -8 -7 -7 ------- Run | Yrd Mat Min Mat Min Exi Min Mat Fac Low Combat Hostiles Destroyed 79 | . 12 8 24 . . 5 10 13 7 Melee 36 | . . . 3 . . 4 9 13 7 Guns 13 | . 11 2 . . . . . . . Cannons 16 | . . . 16 . . . . . . AOE 6 | . . 6 . . . . . . . Classes Destroyed 15 | . 5 1 5 . . . 3 1 . Worker 18 | . . . . . . . 8 10 . Builder 8 | . . . 1 . . 1 2 4 . Tunneler 4 | . . . 1 . . 2 1 . . Hauler 11 | . 2 . 4 . . . 2 3 . Recycler 11 | . 1 . 1 . . . 3 6 . Mechanic 3 | . . . . . . . 1 2 . Operator 2 | . . . 1 . . . . 1 . Watcher 13 | . 3 . 5 . . . 1 4 . Swarmer 21 | . 5 6 3 . . 3 . . 4 Grunt 35 | . 7 . 12 . . 2 5 9 . Brawler 1 | . . . 1 . . . . . . Duelist 4 | . . . 1 . . . . 1 2 Sentry 14 | . . 2 7 . . . 3 1 1 Hunter 3 | . . . . . . . 2 1 . Programmer 1 | . . . . . . . . 1 . Best Kill Streak 8 | . 3 3 4 . . 3 3 8 2 Combat Bots Only 6 | . 3 3 4 . . 3 2 6 2 Max Kills in Single Turn 3 | . 1 3 1 . . 1 1 1 1 Gunslinging . | . . . . . . . . . . Exploded 3 | . . 3 . . . . . . . Melee 1 | . . . 1 . . 1 1 1 1 Uniques/NPCs Destroyed . | . . . . . . . . . . Combat | -11 -10 -10 -9 -9 -9 -8 -8 -7 -7 -------- Run | Yrd Mat Min Mat Min Exi Min Mat Fac Low Hostile Shots Fired 368 | . 67 25 86 2 . 23 65 43 57 Missed 107 | . 20 6 16 1 . 5 15 19 25 Damage Taken 3878 | . 604 242 942 7 . 228 818 496 541 Core 3072 | . 471 202 648 5 . 193 701 377 475 Absorbed by Shields . | . . . . . . . . . . Redirected to Core 1868 | . 323 132 507 5 . 116 394 211 180 Redirected to Shielding 73 | . . . . . . . 3 59 11 Regen/Repaired (Parts) 3 | . . . . . . . . 3 . Core Remaining (%) 69 | 100 . 49 . . . 88 39 . . Volleys Fired 202 | . 95 14 93 . . . . . . Largest 1 | . 1 1 1 . . . . . . Hottest 75 | . 65 65 75 . . . . . . Shots Fired 203 | . 95 15 93 . . . . . . Gun 110 | . 95 12 3 . . . . . . Cannon 90 | . . . 90 . . . . . . Launcher 3 | . . 3 . . . . . . . Special . | . . . . . . . . . . Kinetic 49 | . 49 . . . . . . . . Thermal 151 | . 46 12 93 . . . . . . Explosive 3 | . . 3 . . . . . . . Electromagnetic . | . . . . . . . . . . Robot Hit Streak 18 | . 8 10 18 . . . . . . Robot Miss Streak 9 | . 9 1 2 . . . . . . Penetration Max . | . . . . . . . . . . Secondary Targets . | . . . . . . . . . . Shots Hit Robots 310 | . 56 11 84 . . 13 59 72 15 Core Hits 138 | . 23 9 29 . . 5 25 38 9 Critical Kills 1 | . . . 1 . . . . . . Critical Parts Destroyed 9 | . . . 5 . . 2 2 . . Critical Strikes 25 | . 3 1 6 . . 2 9 3 1 Burn 4 | . 3 1 . . . . . . . Smash 10 | . . . 6 . . 2 2 . . Sever 11 | . . . . . . . 7 3 1 Melee Attacks 210 | . . . 16 1 . 16 77 79 21 Impact 39 | . . . 16 1 . 16 6 . . Slashing 171 | . . . . . . . 71 79 21 Piercing . | . . . . . . . . . . Sneak Attacks 56 | . . . 1 . . 3 25 27 . Combat Hostiles 3 | . . . . . . . 1 2 . Follow-up Attacks . | . . . . . . . . . . Damage Inflicted 11975 | . 783 418 2343 . . 586 3181 4099 565 Guns 970 | . 783 158 29 . . . . . . Cannons 1854 | . . . 1854 . . . . . . Explosions 260 | . . 260 . . . . . . . Melee 8891 | . . . 460 . . 586 3181 4099 565 Ramming . | . . . . . . . . . . Kinetic 358 | . 358 . . . . . . . . Thermal 2466 | . 425 158 1883 . . . . . . Explosive 260 | . . 260 . . . . . . . Electromagnetic . | . . . . . . . . . . Impact 1253 | . . . 460 . . 586 207 . . Slashing 7638 | . . . . . . . 2974 4099 565 Piercing . | . . . . . . . . . . Highest Corruption 4 | . 4 4 . . . . . . . Average Corruption 3 | . 3 4 . . . . . . . Corruption Purged . | . . . . . . . . . . Corruption Blocked . | . . . . . . . . . . Effects 12 | . 6 6 . . . . . . . Message Errors 2 | . 1 1 . . . . . . . Matter Fused 2 | . 2 . . . . . . . . Energy Discharges 3 | . . 3 . . . . . . . Data Loss (minor) 3 | . 2 1 . . . . . . . Data Loss (major) 1 | . 1 . . . . . . . . Misfires 1 | . . 1 . . . . . . . Overload Shots . | . . . . . . . . . . Overflow Damage 1658 | . . 25 325 . . 154 503 589 62 Projectiles 37 | . . . 37 . . . . . . Explosions 25 | . . 25 . . . . . . . Melee 1596 | . . . 288 . . 154 503 589 62 Knockbacks 1 | . . . . . . 1 . . . Impact 1 | . . . . . . 1 . . . Kinetic . | . . . . . . . . . . Secondary . | . . . . . . . . . . Self-Inflicted Damage . | . . . . . . . . . . Shots . | . . . . . . . . . . Rammed . | . . . . . . . . . . Targets Rammed . | . . . . . . . . . . Kicked . | . . . . . . . . . . Crushed . | . . . . . . . . . . Highest Temperature 424 | . 424 278 419 . . . . 4 . Average Temperature 114 | . 98 143 121 . . . . 4 . Received Heat Transfer 1296 | . 231 90 381 . . 90 270 150 84 Effects 3 | . 2 . 1 . . . . . . Shutdowns 1 | . 1 . . . . . . . . Matter Decay 1 | . . . 1 . . . . . . Short Circuit 1 | . 1 . . . . . . . . Siege Activations . | . . . . . . . . . . Robots Corrupted . | . . . . . . . . . . Combat Hostiles . | . . . . . . . . . . Parts Fried 17 | . . . 12 . . 4 1 . . Impact Corruptions 17 | . . . 9 . . 6 2 . . Robots Melted 2 | . 1 . 1 . . . . . . Combat Hostiles 2 | . 1 . 1 . . . . . . Parts Melted 9 | . 3 2 4 . . . . . . Heat Transferred 4514 | . 1258 444 2812 . . . . . . Parts Sabotaged . | . . . . . . . . . . Parts Stolen . | . . . . . . . . . . Parts Stripped . | . . . . . . . . . . Power Chain Reactions . | . . . . . . . . . . Alert | -11 -10 -10 -9 -9 -9 -8 -8 -7 -7 ------- Run | Yrd Mat Min Mat Min Exi Min Mat Fac Low Peak Influence 531 | . 531 375 437 277 . 150 336 425 . Initial 148 | . . 148 146 115 . . 58 11 . Average 213 | . 280 234 227 169 . 89 203 189 . Maximum Alert Level 2 | . 2 1 2 1 . . 1 2 . Low Security (%) 44 | 100 33 31 33 73 . 100 41 50 . Level 1 51 | . 51 68 65 26 . . 58 43 . Level 2 3 | . 14 . 1 . . . . 5 . Level 3 . | . . . . . . . . . . Level 4 . | . . . . . . . . . . Level 5 . | . . . . . . . . . . High Security . | . . . . . . . . . . Max Security . | . . . . . . . . . . Squads Dispatched 14 | . 5 . 2 . . . . 7 . Investigation 8 | . 4 . 2 . . . . 2 . Extermination 1 | . . . . . . . . 1 . Reinforcement 5 | . 1 . . . . . . 4 . Assault . | . . . . . . . . . . Garrison . | . . . . . . . . . . Intercept . | . . . . . . . . . . Searches Triggered . | . . . . . . . . . . Construction Impeded 1 | . . . . . . . . 1 . Haulers Reinforced 2 | . . . . . . . . 2 . Active Scanning Responses . | . . . . . . . . . . Cargo Convoy Interrupts . | . . . . . . . . . . Stealth | -11 -10 -10 -9 -9 -9 -8 -8 -7 -7 --------- Run | Yrd Mat Min Mat Min Exi Min Mat Fac Low Distress Signals 6 | . 1 1 1 . . . 2 1 . Communications Jammed . | . . . . . . . . . . Distress Signals . | . . . . . . . . . . Times Spotted 136 | . 19 8 33 8 . 6 25 20 17 Peak Tracking Total 6 | . 3 3 5 4 . 3 5 4 6 Tactical Retreats 13 | . 1 . 1 2 . 1 4 . 4 Traps | -11 -10 -10 -9 -9 -9 -8 -8 -7 -7 ------- Run | Yrd Mat Min Mat Min Exi Min Mat Fac Low Traps Triggered 7 | . 4 . . . . . 2 1 . Indirectly . | . . . . . . . . . . Trap Hack Attempts . | . . . . . . . . . . Triggered . | . . . . . . . . . . Disarmed . | . . . . . . . . . . Reprogrammed . | . . . . . . . . . . Reused . | . . . . . . . . . . Traps Extracted . | . . . . . . . . . . Installed . | . . . . . . . . . . Triggered 1 | . . . . . . . . . 1 Machines | -11 -10 -10 -9 -9 -9 -8 -8 -7 -7 ---------- Run | Yrd Mat Min Mat Min Exi Min Mat Fac Low Machines Disabled . | . . . . . . . . . . Max in Single Turn . | . . . . . . . . . . Garrison Access 1 | . . . . . . . . 1 . Machines Repaired . | . . . . . . . . . . Machines Dismantled . | . . . . . . . . . . Machines Sabotaged . | . . . . . . . . . . Overloaded Fab Kills . | . . . . . . . . . . Hacking | -11 -10 -10 -9 -9 -9 -8 -8 -7 -7 --------- Run | Yrd Mat Min Mat Min Exi Min Mat Fac Low Machines Accessed 47 | . 10 . 13 . 5 1 6 11 1 Terminals 31 | . 7 . 11 . . 1 5 7 . Fabricators 1 | . . . . . . . . 1 . Repair Stations 2 | . 1 . . . . . . 1 . Recycling Units 6 | . 2 . 2 . . . 1 1 . Scanalyzers . | . . . . . . . . . . Garrison Access 1 | . . . . . . . . 1 . Total Hacks 193 | . 27 . 52 . 50 5 36 22 1 Successful 130 | . 9 . 34 . 50 3 20 13 1 Failed 62 | . 18 . 18 . . 2 15 9 . Catastrophic 7 | . 2 . 2 . . . . 3 . Database Lockouts 1 | . . . . . . . 1 . . Manual 83 | . 15 . 35 . 1 4 21 7 . Terminals 121 | . 20 . 48 . . 5 33 15 . Fabricators 3 | . . . . . . . . 3 . Repair Stations 6 | . 4 . . . . . . 2 . Recycling Units 11 | . 3 . 4 . . . 3 1 . Scanalyzers . | . . . . . . . . . . Garrison Access 1 | . . . . . . . . 1 . Terminal Hacks 96 | . 3 . 22 . 50 2 12 6 1 Record 49 | . . . . . 49 . . . . Part Schematic 1 | . . . . . . . 1 . . Robot Analysis 1 | . . . 1 . . . . . . Prototype ID Bank 1 | . . . 1 . . . . . . Open Door 1 | . . . . . . . . . 1 Open DSF 2 | . . . . . . . . 2 . Branch Access Points 3 | . . . 1 . . . 1 1 . Terminal Index 5 | . 1 . 2 . . . 1 1 . Alert Level 5 | . . . 1 . . 1 2 1 . Unreport Threat 5 | . . . 3 . . . 2 . . Locate Traps 5 | . . . 4 . . . . 1 . Surveillance Status 1 | . . . . . . . 1 . . Patrol Status 1 | . . . . . . . 1 . . Transport Status 1 | . . . 1 . . . . . . Investigation Status 1 | . 1 . . . . . . . . Hauler Manifests 1 | . . . 1 . . . . . . Registered Components 1 | . . . 1 . . . . . . Zone Layout 11 | . 1 . 6 . . 1 3 . . Derelict Proto ID Bank 1 | . . . . . 1 . . . . Fabricator Hacks 2 | . . . . . . . . 2 . Load Schematic 1 | . . . . . . . . 1 . Build 1 | . . . . . . . . 1 . Repair Station Hacks 2 | . . . . . . . . 2 . Scan Component 1 | . . . . . . . . 1 . Repair 1 | . . . . . . . . 1 . Recycling Unit Hacks 3 | . . . . . . . 3 . . Process 1 | . . . . . . . 1 . . Report Inventory 1 | . . . . . . . 1 . . Retrieve Matter 1 | . . . . . . . 1 . . Scanalyzer . | . . . . . . . . . . Garrison Access Hacks 1 | . . . . . . . . 1 . Seal Access 1 | . . . . . . . . 1 . Unauthorized Hacks 26 | . 6 . 12 . . 1 5 2 . Terminals 21 | . 4 . 10 . . 1 5 1 . Track 15 | . 3 . 8 . . 1 3 . . Botnet 6 | . 1 . 2 . . . 2 1 . Fabricators . | . . . . . . . . . . Repair Stations . | . . . . . . . . . . Recycling Units 5 | . 2 . 2 . . . . 1 . Tunnel 5 | . 2 . 2 . . . . 1 . Scanalyzers . | . . . . . . . . . . Garrison Access . | . . . . . . . . . . Data Cores Recovered 1 | . . . 1 . . . . . . Used . | . . . . . . . . . . Hacking Detections 31 | . 8 . 11 . . . 5 7 . Full Trace Events 5 | . 4 . . . . . . 1 . Feedback Events . | . . . . . . . . . . Feedback Blocked . | . . . . . . . . . . Robot Schematics Acquired . | . . . . . . . . . . Robots Built . | . . . . . . . . . . Authchips . | . . . . . . . . . . Time . | . . . . . . . . . . Total Robot Build Rating . | . . . . . . . . . . Part Schematics Acquired 1 | . . . . . . . 1 . . Parts Built 2 | . . . . . . . . 2 . Authchips . | . . . . . . . . . . Time 36 | . . . . . . . . 36 . Total Part Build Rating 6 | . . . . . . . . 6 . Parts Repaired 1 | . . . . . . . . 1 . Time 13 | . . . . . . . . 13 . Parts Recycled . | . . . . . . . . . . Recycled Matter 120 | . . . . . . . 120 . . Retrieved Matter . | . . . . . . . . . . Retrieved Components . | . . . . . . . . . . Parts Scanalyzed . | . . . . . . . . . . Part Schematics Acquired . | . . . . . . . . . . Parts Damaged . | . . . . . . . . . . Bothacking | -11 -10 -10 -9 -9 -9 -8 -8 -7 -7 ------------ Run | Yrd Mat Min Mat Min Exi Min Mat Fac Low Used RIF Installer . | . . . . . . . . . . Robots Hacked . | . . . . . . . . . . Non-combat . | . . . . . . . . . . Combat . | . . . . . . . . . . Robot Hacks Applied . | . . . . . . . . . . Relay Couplers Released . | . . . . . . . . . . Fabnet Peak Effective % . | . . . . . . . . . . Robots Rewired . | . . . . . . . . . . Allies Hacked . | . . . . . . . . . . Hacks Repelled . | . . . . . . . . . . Allies | -11 -10 -10 -9 -9 -9 -8 -8 -7 -7 -------- Run | Yrd Mat Min Mat Min Exi Min Mat Fac Low Total Allies 3 | . . 1 . 2 . . . . . Largest Group 2 | . . 1 1 2 1 . . . . Highest-Rated Group 50 | . . 31 31 50 28 . . . . Highest-Rated Ally 31 | . . 31 31 31 28 . . . . Total Orders . | . . . . . . . . . . Ally Attacks 24 | . . 5 . 19 . . . . . Total Damage 419 | . . 105 . 314 . . . . . Kills 8 | . . 3 . 5 . . . . . Allies Corrupted . | . . . . . . . . . . Allies Melted . | . . . . . . . . . . Intel | -11 -10 -10 -9 -9 -9 -8 -8 -7 -7 ------- Run | Yrd Mat Min Mat Min Exi Min Mat Fac Low Robot Analysis Total 1 | . . . 1 . . . . . . Derelict Logs Recovered 3 | . . . . 2 . . . . 1 Drone Launches . | . . . . . . . . . . Drone Recoveries . | . . . . . . . . . . Exploration | -11 -10 -10 -9 -9 -9 -8 -8 -7 -7 ------------- Run | Yrd Mat Min Mat Min Exi Min Mat Fac Low Turns Passed 5970 | 57 1001 343 1515 409 242 288 1096 712 307 Spaces Moved 5648 | 39 949 313 1156 341 265 250 756 1049 530 Core . | . . . . . . . . . . Treads . | . . . . . . . . . . Legs 1160 | 39 44 . . . 103 250 724 . . Wheels 2559 | . 586 313 1156 341 162 . 1 . . Hover 25 | . 25 . . . . . . . . Flight 1904 | . 294 . . . . . 31 1049 530 Fastest Speed 30 | 120 37 80 80 90 90 90 32 30 30 Average Speed 69 | 120 69 80 83 90 90 90 95 31 31 Slowest Speed 120 | 120 120 80 90 90 90 90 105 32 34 Overloaded Moves . | . . . . . . . . . . Propulsion Burnouts . | . . . . . . . . . . Robots Hopped 2 | . 1 . . . . . . . 1 Cave-ins Triggered . | . . . . . . . . . . Exploration Rate (%) 58 | 3 86 64 89 82 67 47 52 29 69 Regions Visited 9 Branch Regions 5 Pre-discovered Areas 7 | . 2 . 2 1 1 . . 1 . Known Exits Taken 8 | . 1 1 1 1 1 1 1 1 . Unknown Exits Taken 1 | 1 . . . . . . . . . Scrap Searched 3 | . . 1 . . . 1 . . 1 Spaces Dug 10 | . . . 2 . . . 1 6 1 Terrain Destroyed 47 | . . 23 16 . . . 1 6 1 Melee 9 | . . . 1 . . . 1 6 1 Projectile 15 | . . . 15 . . . . . . AOE 23 | . . 23 . . . . . . . Terrain Rammed . | . . . . . . . . . . Walls Destroyed . | . . . . . . . . . . Machines Disabled . | . . . . . . . . . . Actions | -11 -10 -10 -9 -9 -9 -8 -8 -7 -7 --------- Run | Yrd Mat Min Mat Min Exi Min Mat Fac Low Total 7107 | 48 1192 390 1579 440 268 281 989 1287 633 Wait 790 | 7 110 36 246 90 . 7 112 107 75 Move 5635 | 38 946 312 1155 340 264 249 755 1048 528 Hop 2 | . 1 . . . . . . . 1 Pick Up 16 | . 1 3 5 . . 1 1 5 . Fast Attach 64 | 2 18 1 9 . 2 1 16 13 2 Attach 5 | . . . 1 . . . 2 2 . Detach 1 | . 1 . . . . . . . . Swap 12 | . 3 5 3 . . . . 1 . Drop 68 | 1 17 4 13 . 2 2 14 14 1 Fire 202 | . 95 14 93 . . . . . . Melee 210 | . . . 16 1 . 16 77 79 21 Ram . | . . . . . . . . . . Kick . | . . . . . . . . . . Crush . | . . . . . . . . . . Escape Stasis . | . . . . . . . . . . Rewire . | . . . . . . . . . . Trap . | . . . . . . . . . . Miscellaneous 102 | . . 15 38 9 . 5 12 18 5 Route ------- -11/Scrapyard -10/Materials (discovered 3 exits: *Mat x2 / *Min) -10/Mines -9/Materials (discovered 4 exits: *Mat x3 / *Min) -9/Mines (discovered 3 exits: *Mat / *Exi / *Zio) -9/Exiles (discovered 2 exits: *Min x2) -8/Mines -8/Materials (discovered 2 exits: *Fac x2) -7/Factory (discovered 4 exits: Sto x2 / *Low x2) -7/Lower Caves History --------- Turn | Location | Event 1 | -11/Scrapyard | Upgraded with Propulsion slot (x1) 1 | -11/Scrapyard | Upgraded with Utility slot (x1) 1 | -11/Scrapyard | Discovered new exit (range 1) 58 | -11/Scrapyard | Entered Materials 314 | -10/Materials | Core integrity fell below 50% 345 | -10/Materials | Discovered new exit (range 4) 347 | -10/Materials | Identified exit to Materials 417 | -10/Materials | Discovered new exit (range 13) 602 | -10/Materials | Discovered exit to Materials (range 9) 649 | -10/Materials | Build established: Mutant 767 | -10/Materials | Reached level 2 778 | -10/Materials | Identified exit to Mines 1059 | -10/Materials | Entered Mines 1159 | -10/Mines | Core integrity fell below 20% 1206 | -10/Mines | Assembled infested the area 1258 | -10/Mines | Found a hidden stash of uninstalled traps 1273 | -10/Mines | Received a Mining Laser from a helpful Derelict 1360 | -10/Mines | Reached level 3 1379 | -10/Mines | Discovered exit to Materials (range 6) 1402 | -10/Mines | Entered Materials 1402 | -9/Materials | Accompanied by 1 ally 1403 | -9/Materials | Core integrity fell below 50% 1404 | -9/Materials | Reached level 4 1404 | -9/Materials | Upgraded with Utility slot (x1) 1566 | -9/Materials | Identified exit to Mines 1804 | -9/Materials | Reached level 5 2008 | -9/Materials | Discovered new exit (range 15) 2290 | -9/Materials | Reached level 6 2472 | -9/Materials | Discovered new exit (range 17) 2610 | -9/Materials | Build established: Hacker-Mutant 2771 | -9/Materials | Discovered new exit (range 10) 2784 | -9/Materials | Identified exit to Materials 2917 | -9/Materials | Entered Mines 2919 | -9/Mines | Reached level 7 2920 | -9/Mines | Upgraded with Utility slot (x1) 2928 | -9/Mines | A Derelict revealed a hidden shortcut to a safe place 2936 | -9/Mines | Identified exit to Zion 3119 | -9/Mines | Learned Materials terminal intel 3154 | -9/Mines | Deemed a non-threat by the Exiles lab entrance 3154 | -9/Mines | Discovered new exit (range 5) 3157 | -9/Mines | Identified exit to Exiles 3195 | -9/Mines | Discovered exit to Materials (range 7) 3218 | -9/Mines | Build established: Hacker-Assassin 3326 | -9/Mines | Entered Exiles 3326 | -9/Exiles | Found Exiles lab destroyed 3326 | -9/Exiles | Accompanied by 1 ally 3338 | -9/Exiles | Discovered new exit (range 16) 3356 | -9/Exiles | Led the pair of lost Derelicts to a safe place 3466 | -9/Exiles | Opened EX-Vault 3473 | -9/Exiles | Found Potential Leg 3476 | -9/Exiles | Found Potential Leg 3528 | -9/Exiles | Learned location of Zion (-7) 3561 | -9/Exiles | Discovered new exit (range 10) 3567 | -9/Exiles | Identified exit to Mines 3568 | -9/Exiles | Entered Mines 3570 | -8/Mines | Reached level 8 3720 | -8/Mines | Discovered exit to Materials (range 15) 3856 | -8/Mines | Entered Materials 3857 | -8/Materials | Loaded intel: 12 terminal locations 3858 | -8/Materials | Reached level 9 3860 | -8/Materials | Upgraded with Propulsion slot (x1) 4454 | -8/Materials | Reached level 10 4544 | -8/Materials | Core integrity fell below 50% 4608 | -8/Materials | Discovered new exit (range 10) 4644 | -8/Materials | Central database locked down 4847 | -8/Materials | Discovered new exit (range 18) 4951 | -8/Materials | Identified exit to Factory 4952 | -8/Materials | Entered Factory 4953 | -7/Factory | Core integrity fell below 50% 4954 | -7/Factory | Reached level 11 4989 | -7/Factory | Upgraded with Utility slot (x1) 5019 | -7/Factory | Repaired Utility Shielding 5159 | -7/Factory | Fabricated Imp. Signal Interpreter (x2) 5242 | -7/Factory | Build established: Hacker-Scout 5276 | -7/Factory | Reached level 12 5623 | -7/Factory | Identified exit to Storage 5623 | -7/Factory | Identified exit to Lower Caves 5664 | -7/Factory | Entered Lower Caves 5666 | -7/Lower Caves | Reached level 13 5696 | -7/Lower Caves | Attracted the attention of an 0b10 outpost 5750 | -7/Lower Caves | Learned 8 Factory zone layouts 5797 | -7/Lower Caves | Core integrity fell below 20% 5930 | -7/Lower Caves | Attracted the attention of an 0b10 checkpoint 5971 | -7/Lower Caves | Destroyed by Y-54 Guardian with Gatling Laser Last Messages --------------- 05806_ Used Protomatter to restore core integrity (+63, depleted) 05807_ VTOL Module fries itself beyond repair. 05808_ Acquired VTOL Module. 05809_ Acquired 10 matter. 05853_ Destroyed VTOL Module. 05864_ S-27 Virus destroyed. 05868_ Used Protomatter to restore core integrity (+42, depleted) 05877_ Dropped Mic. Nuclear Core. 05877_ Acquired Lgt. Nuclear Core. 05890_ Connecting with WAR.Sys... >>Open Door Sealed Heavy Doors opened. 05903_ Searching scrap... 05903_ Found Launcher Guidance Computer. 05903_ Found 23 Matter. 05930_ Y-54 Guardian: "INTERCEPTING UNREGISTERED DERELICT." 05954_ L-41 Fighter destroyed. 05955_ VTOL Module severed. 05963_ L-41 Fighter destroyed. 05967_ Carbon-fiber Leg fries itself beyond repair. Map ----- +----------------------------------------------------+ | ????????????????????????????????????????????????## | | ???????????????????????????????????????????????### | | ???????????????????????????????????????????????### | | ??????????????????????????????????????????????### | | ?????????????????????????????????????????????#### | | ?????????????????????????????????????????????### | | ?????###########?????????????????????????????## | | ????#############????????????????????????????## | | ?###### ## ###????????????????????????????### | | ###### ##????????????????????????######## | | ### ##????????????????????????######### | | # ##??????????????b?????????##///### | | ## ### ###???????????????g????????##// # | | ####### ####???????????????g?????????##//# # # | | ####### ####?????????????????????????##//# X | | ????## ##??????????????????? ######?##/ ##### | | ????## ##??????????????????? ######?####### | | ???### ###??????????????????? ##?####?### | | ???### #######???????????????? ##??????### | | ???## ########???????????????## ##???????### | | ???## ###???????????? ### ##??????#### | | ???### ###????????## ##### ##?????#### | | ???#### ############# ## ###????### | | ????### ####### ############ # # ######### | | ?????## ##### # ## ######## | | ?????## ##### # ## @ | | ????? # ##"#" # ##Y############ | | # #" ## ##!########### # ########### | | "##=###???##### # ########## | | "=%=###???##!% # # ##??????? | | ????? #### " ! ###??## ####????? | | ????? #### #" ####?## ###### ###???? | | ???? ??## ## ###### ####### ##???? | | ???? ???## ##" ##### ###??## ##???? | | ???? ???## ?##" g## #####?? ???? | | ????? #### ##" #### ## #####?? ## ???? | | ??## #### ### #### ## ###?### | | ?### #### ## ##?###? ## | | ?## b ### ### ##?????? ## | | ?## ##### ### ##?????? # | | gg## ####### ## ##????????? | | ? ### ###?#### ## ##????????? | | ?????#### #????#### #### ##????????? | | ?????????#######?????################ ###????????? | | ??????????######???????##################????????? | | ????????????????????????????????????####?????????? | | ?????????????????????????????????????????????????? | | ?????????????????????????????????????????????????? | | ?????????????????????????????????????????????????? | | ?????????????????????????????????????????????????? | +----------------------------------------------------+ Best States ------------- Heat Dissipation 43 Energy Generation 20 Energy Capacity 280 Matter Stores 300 Matter Capacity 300 Sight Range 19 Robot Scan Range 30 Terrain Scan Range 14 Terrain Scan Density 210 Armor Coverage 150 Propulsion Shielding 33 Utility Shielding 33 Evasion (%) 64 Targeting Accuracy 13 Core Analysis 6 Offensive Hacking 25 Defensive Hacking 15 Item Schematics ----------------- Imp. Signal Interpreter | -8/Materials | Hacked Robot Schematics ------------------ None Fabricated ------------ Imp. Signal Interpreter | x2 | -7/Factory Alien Tech Used ----------------- None Achievements -------------- It's Just You Challenges ------------ None RPGLIKE | -11 -10 -10 -9 -9 -9 -8 -8 -7 -7 --------- Run | Yrd Mat Min Mat Min Exi Min Mat Fac Low Levels Raised 12 | . 1 1 3 1 . 1 2 2 1 XP Earned 21884 | 3000 1937 1420 5325 1207 200 1100 2955 3490 1250 XP Spent 19450 | 3000 1485 . 6000 1400 . 1600 2965 3000 . Upgrades 53 | 15 6 . 16 2 . 2 9 3 . Propulsion Slot 2 | 1 . . . . . . 1 . . Utility Slot 4 | 1 . . 1 1 . . . 1 . Core Integrity 5 | 1 1 . . . . . 3 . . Heat Dissipation 3 | . . . 3 . . . . . . Energy Generation 1 | . . . 1 . . . . . . Mass Support 2 | . . . 1 . . . 1 . . Inventory Capacity 4 | . 2 . 2 . . . . . . Sight Range 2 | . 1 . . 1 . . . . . Sensor Range 15 | 11 . . 4 . . . . . . Terrain Scan Density 2 | 1 . . 1 . . . . . . Melee Accuracy 5 | . . . . . . . 4 1 . Hack Attack % 5 | . 2 . 1 . . 1 . 1 . Hack Defense % 3 | . . . 2 . . 1 . . . Protomatter Created 1087 | . 76 106 343 . . 38 133 248 143 Integrity Restored 2253 | . . 318 867 174 . 114 267 408 105 Core 2220 | . . 318 867 141 . 114 267 408 105 Parts 33 | . . . . 33 . . . . . Protomatter Decayed 189 | . 66 8 . 34 . . 44 37 . Game ------ Seed NuclearBeamPod Manual? 0 Play Time 01:25:21 Cumulative 31.4 hours Start 2024.04.28 @ 04:25:57 End 2024.04.28 @ 05:51:39 Sessions 1 Manual Loads 0 Difficulty Rogue Special Mode Winter2019/RPGLIKE Game No. 14 Rogue 11 Adventurer 3 Explorer 0 Win Type - Total 3 Types 3/0/0/0/0/0/0/0/0 Lore% 46 Gallery% 43 Achievement% 38 Wizard Run 0 Options --------- Layout 0 ASCII 0 Keyboard 0 Movement Numpad Keybinds 0 Fullscreen 1 Font 18/SmallcapsGlow Map View 76x50 Zoom Use 0% Tactical HUD 1 Map Filters NONE Filters NONE Steam 1 RUN: b295c472-d171-4e79-9ab7-1b6262b9d266